fUST/lending_fUST_20240121
["ID","MTS","AMOUNT","RATE_DAILY","PERIOD"]
[312355859,1705819846077,-2461.771092,0.00030197,2]
[312355860,1705819846086,-151.0,0.00030197,2]
[312355861,1705819846095,-4630.373701,0.00030197,2]
[312355862,1705819846105,-4630.373701,0.00030197,2]
[312355863,1705819846114,-4251.518326,0.00030197,2]
[312355864,1705819846123,-4251.518326,0.00030197,2]
[312355865,1705819846132,-153.0,0.000302,2]
[312355866,1705819846142,-153.0,0.000302,2]
[312355867,1705819846151,-153.0,0.000302,2]
[312355868,1705819846160,-153.0,0.000302,2]
[312355869,1705819846169,-153.0,0.000302,2]
[312355870,1705819846178,-153.0,0.000302,2]
[312355871,1705819846187,-1109.94798581,0.00030295,4]
[312355872,1705819846197,-500.0,0.00030296,2]
[312355873,1705819846206,-500.0,0.00030296,2]
[312355874,1705819846215,-500.0,0.00030296,2]
[312355875,1705819846225,-401.01484293,0.00030296,2]
[312355876,1705819846235,-258.29,0.00030296,2]
[312355877,1705819846244,-258.29,0.00030296,2]
[312355878,1705819846253,-258.29,0.00030296,2]
[312355880,1705819846262,-2461.771092,0.00030297,2]
[312355882,1705819846271,-2461.771092,0.00030297,2]
[312355883,1705819846280,-151.0,0.00030297,2]
[312355885,1705819846289,-4630.373701,0.00030297,2]
[312355886,1705819846298,-4630.373701,0.00030297,2]
[312355887,1705819846307,-4251.518326,0.00030297,2]
[312355889,1705819846316,-4251.518326,0.00030297,2]
[312355890,1705819846327,-8326.02008428,0.00030297,2]
[312355891,1705819846555,-0.00271086,0.00030136,2]
[312355990,1705821040275,-154.70605849,0.00028096,4]
[312355991,1705821040285,-150.0,0.00028097,2]
[312355992,1705821040294,-172.865023,0.00028767,2]
[312355993,1705821040303,-1022.22979411,0.00029041,2]
[312355994,1705821040312,-305.51246618,0.00029041,2]
[312355995,1705821040321,-155.0,0.00029958,2]
[312355997,1705821040330,-579.38418214,0.00029989,2]
[312355998,1705821040342,-277.23266737,0.00029989,2]
[312355999,1705821040351,-225.40245301,0.00029989,2]
[312356000,1705821040360,-1964.48997134,0.00029989,5]
[312356001,1705821040369,-154.70605849,0.00029989,2]
[312356002,1705821040378,-6535.97,0.0002999,3]
[312356004,1705821040387,-12463.67,0.0002999,3]
[312356005,1705821040396,-10386.39,0.0002999,3]
[312356006,1705821040406,-8655.32,0.0002999,3]
[312356007,1705821040415,-155.20830859,0.00029998,2]
[312356009,1705821040425,-425.87753299,0.00029998,2]
[312356011,1705821040435,-1858.64220957,0.00029998,2]
[312356014,1705821040444,-1516.58715699,0.00029998,2]
[312356016,1705821040454,-154.97566005,0.00029998,2]
[312356018,1705821040463,-179.45377673,0.00029998,2]
[312356020,1705821040472,-274.86515668,0.00029999,2]
[312356022,1705821040481,-2102.94542064,0.00029999,2]
[312356024,1705821040491,-688.33469937,0.0003,4]
[312356027,1705821040500,-464.55162265,0.0003,2]
[312356029,1705821040509,-134767.05298855,0.0003,7]
[312356031,1705821040518,-244.10022188,0.0003,4]
[312356033,1705821040527,-155.0,0.0003,2]
[312356035,1705821040537,-252.26269482,0.0003,4]
[312356037,1705821040546,-2926.26840009,0.00030018,7]
[312356039,1705821040556,-193.72,0.00030035,2]
[312356041,1705821040565,-193.72,0.00030035,2]
[312356043,1705821040574,-193.72,0.00030035,2]
[312356045,1705821040583,-193.72,0.00030035,2]
[312356047,1705821040593,-193.72,0.00030035,2]
[312356049,1705821040602,-193.72,0.00030035,2]
[312356051,1705821040611,-193.72,0.00030035,2]
[312356053,1705821040620,-226.02,0.00030035,2]
[312356055,1705821040630,-128556.94689064,0.00030036,2]
[312356057,1705821040639,-62096.29592357,0.00030041,2]
[312356059,1705821040649,-160.47776168,0.00030135,10]
[312356062,1705821040658,-1000.0,0.00030135,14]
[312356064,1705821040667,-1000.0,0.00030135,14]
[312356066,1705821040676,-1000.0,0.00030135,14]
[312356068,1705821040685,-1000.0,0.00030135,14]
[312356070,1705821040694,-312.19320371,0.00030135,14]
[312356072,1705821040703,-228.02733672,0.00030135,2]
[312356074,1705821040713,-500.0,0.00030135,2]
[312356076,1705821040722,-500.0,0.00030135,2]
[312356078,1705821040732,-500.0,0.00030135,2]
[312356080,1705821040741,-500.0,0.00030135,2]
[312356082,1705821040751,-500.0,0.00030135,2]
[312356084,1705821040762,-500.0,0.00030135,2]
[312356086,1705821040771,-500.0,0.00030135,2]
[312356088,1705821040781,-500.0,0.00030135,2]
[312356090,1705821040790,-500.0,0.00030135,2]
[312356092,1705821040799,-500.0,0.00030135,2]
[312356094,1705821040809,-500.0,0.00030135,2]
[312356096,1705821040819,-500.0,0.00030135,2]
[312356098,1705821040829,-500.0,0.00030135,2]
[312356100,1705821040840,-562.53884102,0.00030135,2]
[312356102,1705821040849,-500.0,0.00030135,2]
[312356104,1705821040858,-175.45989026,0.00030135,2]
[312356105,1705821040868,-500.0,0.00030135,2]
[312356106,1705821040876,-500.0,0.00030135,2]
[312356107,1705821040886,-597.91919236,0.00030135,2]
[312356108,1705821040895,-474.383019,0.00030135,2]
[312356109,1705821040904,-500.0,0.00030135,2]
[312356110,1705821040914,-500.0,0.00030135,2]
[312356111,1705821040923,-500.0,0.00030135,2]
[312356112,1705821040932,-1969.416874,0.00030136,2]
[312356113,1705821040941,-1969.416874,0.00030136,2]
[312356114,1705821040951,-3401.214661,0.00030136,2]
[312356115,1705821040960,-3401.214661,0.00030136,2]
[312356116,1705821040969,-3704.298961,0.00030136,2]
[312356117,1705821040980,-3704.298961,0.00030136,2]
[312356118,1705821040991,-151.0,0.00030136,2]
[312356119,1705821041000,-151.0,0.00030136,2]
[312356120,1705821041010,-283.18988707,0.00030136,3]
[312356121,1705821041019,-686.69676861,0.00030136,4]
[312356122,1705821041028,-500.0,0.00030136,2]
[312356123,1705821041038,-500.0,0.00030136,2]
[312356124,1705821041046,-500.0,0.00030136,2]
[312356125,1705821041055,-500.0,0.00030136,2]
[312356126,1705821041065,-500.0,0.00030136,2]
[312356127,1705821041075,-1176.65,0.00030136,2]
[312356128,1705821041086,-504.58949916,0.00030136,2]
[312356129,1705821041095,-500.0,0.00030136,2]
[312356130,1705821041223,-500.0,0.00030136,2]
[312356131,1705821041234,-500.0,0.00030136,2]
[312356132,1705821041244,-500.0,0.00030136,2]
[312356133,1705821041254,-163.9763583,0.00030136,2]
[312356134,1705821041265,-500.0,0.00030136,2]
[312356135,1705821041275,-500.0,0.00030136,2]
[312356136,1705821041285,-500.0,0.00030136,2]
[312356137,1705821041294,-508.70316251,0.00030136,2]
[312356138,1705821041305,-500.0,0.00030136,2]
[312356139,1705821041316,-500.0,0.00030136,2]
[312356140,1705821041325,-1031.0,0.00030136,2]
[312356141,1705821041336,-500.0,0.00030136,2]
[312356142,1705821041349,-500.0,0.00030136,2]
[312356143,1705821041360,-500.0,0.00030136,2]
[312356144,1705821041370,-500.0,0.00030136,2]
[312356145,1705821041379,-500.0,0.00030136,2]
[312356146,1705821041390,-500.0,0.00030136,2]
[312356147,1705821041400,-500.0,0.00030136,2]
[312356148,1705821041411,-500.0,0.00030136,2]
[312356149,1705821041421,-500.0,0.00030136,2]
[312356150,1705821041431,-500.0,0.00030136,2]
[312356151,1705821041440,-500.0,0.00030136,2]
[312356152,1705821041451,-500.0,0.00030136,2]
[312356153,1705821041461,-500.0,0.00030136,2]
[312356154,1705821041470,-500.0,0.00030136,2]
[312356155,1705821041479,-502.32093715,0.00030136,2]
[312356156,1705821041488,-1053.62,0.00030136,2]
[312356157,1705821041497,-1000.0,0.00030136,2]
[312356158,1705821041505,-500.0,0.00030136,2]
[312356159,1705821041515,-500.0,0.00030136,2]
[312356160,1705821041524,-500.0,0.00030136,2]
[312356161,1705821041532,-500.0,0.00030136,2]
[312356162,1705821041541,-500.0,0.00030136,2]
[312356163,1705821041550,-1166.53,0.00030136,2]
[312356164,1705821041559,-602.55421937,0.00030136,2]
[312356165,1705821041568,-500.0,0.00030136,2]
[312356166,1705821041577,-409.5588968,0.00030136,2]
[312356167,1705821041586,-562.18289827,0.00030136,2]
[312356168,1705821041594,-500.0,0.00030136,2]
[312356169,1705821041603,-500.0,0.00030136,2]
[312356170,1705821041612,-500.0,0.00030136,2]
[312356171,1705821041621,-500.0,0.00030136,2]
[312356172,1705821041630,-500.0,0.00030136,2]
[312356173,1705821041639,-387.91365375,0.00030136,2]
[312356174,1705821041648,-500.0,0.00030136,2]
[312356175,1705821041656,-500.0,0.00030136,2]
[312356176,1705821041665,-500.0,0.00030136,2]
[312356177,1705821041674,-768.2,0.00030136,2]
[312356178,1705821041682,-500.0,0.00030136,2]
[312356179,1705821041691,-500.0,0.00030136,2]
[312356180,1705821041700,-500.0,0.00030136,2]
[312356181,1705821041708,-637.23312708,0.00030136,2]
[312356182,1705821041717,-500.0,0.00030136,2]
[312356183,1705821041726,-590.12,0.00030136,2]
[312356184,1705821041735,-581.49926245,0.00030136,2]
[312356185,1705821041744,-1000.0,0.00030136,2]
[312356186,1705821041753,-598.57591787,0.00030136,2]
[312356187,1705821041762,-500.0,0.00030136,2]
[312356188,1705821041771,-500.0,0.00030136,2]
[312356189,1705821041780,-500.0,0.00030136,2]
[312356190,1705821041789,-500.0,0.00030136,2]
[312356191,1705821041799,-500.0,0.00030136,2]
[312356192,1705821041808,-500.0,0.00030136,2]
[312356193,1705821041817,-500.0,0.00030136,2]
[312356194,1705821041826,-500.0,0.00030136,2]
[312356195,1705821041835,-500.0,0.00030136,2]
[312356196,1705821041844,-500.0,0.00030136,2]
[312356197,1705821041853,-500.0,0.00030136,2]
[312356198,1705821041862,-500.0,0.00030136,2]
[312356199,1705821041871,-500.0,0.00030136,2]
[312356200,1705821041881,-630.44,0.00030136,2]
[312356201,1705821041890,-506.66714985,0.00030136,2]
[312356202,1705821041899,-500.40738699,0.00030136,2]
[312356203,1705821041908,-500.0,0.00030136,2]
[312356204,1705821041917,-500.0,0.00030136,2]
[312356205,1705821041926,-500.0,0.00030136,2]
[312356206,1705821041934,-527.82,0.00030136,2]
[312356207,1705821041943,-500.0,0.00030136,2]
[312356208,1705821041952,-500.0,0.00030136,2]
[312356209,1705821041962,-500.0,0.00030136,2]
[312356210,1705821041971,-222.05922912,0.00030136,2]
[312356211,1705821041980,-500.0,0.00030136,14]
[312356212,1705821041990,-500.0,0.00030136,2]
[312356213,1705821041999,-300.0,0.00030136,2]
[312356214,1705821042008,-500.0,0.00030136,2]
[312356215,1705821042017,-500.0,0.00030136,2]
[312356216,1705821042026,-656.62,0.00030136,2]
[312356217,1705821042035,-500.0,0.00030136,2]
[312356218,1705821042045,-633.96649337,0.00030136,2]
[312356219,1705821042054,-500.0,0.00030136,2]
[312356220,1705821042063,-200.0,0.00030136,2]
[312356221,1705821042072,-500.0,0.00030136,2]
[312356222,1705821042081,-651.06,0.00030136,2]
[312356223,1705821042091,-500.0,0.00030136,2]
[312356224,1705821042100,-500.0,0.00030136,2]
[312356225,1705821042110,-500.0,0.00030136,2]
[312356226,1705821042119,-500.0,0.00030136,2]
[312356227,1705821042128,-641.27,0.00030136,2]
[312356228,1705821042138,-500.0,0.00030136,2]
[312356229,1705821042147,-500.0,0.00030136,2]
[312356230,1705821042157,-500.0,0.00030136,2]
[312356231,1705821042166,-500.0,0.00030136,2]
[312356232,1705821042176,-476.29748641,0.00030136,2]
[312356233,1705821042187,-500.0,0.00030136,2]
[312356234,1705821042197,-500.0,0.00030136,2]
[312356235,1705821042207,-500.0,0.00030136,2]
[312356236,1705821042216,-500.0,0.00030136,2]
[312356237,1705821042228,-500.0,0.00030136,2]
[312356238,1705821042239,-500.0,0.00030136,2]
[312356239,1705821042249,-500.0,0.00030136,2]
[312356240,1705821042259,-500.0,0.00030136,2]
[312356241,1705821042270,-524.30201853,0.00030136,2]
[312356242,1705821042281,-506.28428465,0.00030136,2]
[312356243,1705821042290,-647.98810351,0.00030136,2]
[312356244,1705821042300,-500.0,0.00030136,2]
[312356245,1705821042310,-500.0,0.00030136,2]
[312356246,1705821042319,-500.0,0.00030136,2]
[312356247,1705821042329,-500.0,0.00030136,2]
[312356248,1705821042342,-305.90400951,0.00030136,2]
[312356249,1705821042352,-500.0,0.00030136,2]
[312356250,1705821042361,-600.42402773,0.00030136,2]
[312356251,1705821042371,-500.0,0.00030136,2]
[312356252,1705821042381,-345.13162571,0.00030136,2]
[312356253,1705821042390,-517.31,0.00030136,2]
[312356254,1705821042399,-500.0,0.00030136,2]
[312356255,1705821042409,-500.72302564,0.00030136,2]
[312356256,1705821042419,-379.75033587,0.00030136,2]
[312356257,1705821042428,-420.64427584,0.00030136,2]
[312356258,1705821042437,-500.0,0.00030136,2]
[312356259,1705821042446,-1096.68,0.00030136,2]
[312356260,1705821042455,-500.0,0.00030136,2]
[312356261,1705821042464,-500.0,0.00030136,2]
[312356262,1705821042473,-500.0,0.00030136,2]
[312356263,1705821042482,-514.87567148,0.00030136,2]
[312356264,1705821042491,-500.0,0.00030136,2]
[312356265,1705821042500,-500.0,0.00030136,2]
[312356266,1705821042510,-638.59,0.00030136,2]
[312356267,1705821042519,-500.0,0.00030136,2]
[312356268,1705821042529,-544.28003768,0.00030136,2]
[312356269,1705821042540,-746.35,0.00030136,2]
[312356270,1705821042550,-746.35,0.00030136,2]
[312356271,1705821042559,-746.35,0.00030136,2]
[312356272,1705821042568,-746.35,0.00030136,2]
[312356273,1705821042577,-746.35,0.00030136,2]
[312356274,1705821042587,-746.35,0.00030136,2]
[312356275,1705821042596,-746.35,0.00030136,2]
[312356276,1705821042605,-746.35,0.00030136,2]
[312356277,1705821042615,-746.35,0.00030136,2]
[312356278,1705821042624,-746.35,0.00030136,2]
[312356279,1705821042641,-1000.0,0.00030136,2]
[312356281,1705821042650,-746.35,0.00030136,2]
[312356284,1705821042659,-746.35,0.00030136,2]
[312356287,1705821042669,-746.35,0.00030136,2]
[312356290,1705821042678,-500.0,0.00030136,2]
[312356293,1705821042687,-504.26561757,0.00030136,2]
[312356295,1705821042696,-500.0,0.00030136,2]
[312356298,1705821042705,-500.0,0.00030136,2]
[312356301,1705821042715,-500.0,0.00030136,2]
[312356304,1705821042725,-500.0,0.00030136,2]
[312356306,1705821042734,-500.0,0.00030136,2]
[312356308,1705821042746,-500.0,0.00030136,2]
[312356310,1705821042758,-500.0,0.00030136,2]
[312356312,1705821042767,-554.88569224,0.00030136,2]
[312356313,1705821042777,-2181.24,0.00030136,2]
[312356314,1705821042790,-767.27,0.00030136,2]
[312356315,1705821042802,-500.0,0.00030136,2]
[312356316,1705821042811,-507.05888226,0.00030136,2]
[312356317,1705821042821,-690.49,0.00030136,2]
[312356318,1705821042831,-2966.89,0.00030136,2]
[312356319,1705821042842,-633.68,0.00030136,2]
[312356320,1705821042853,-513.36744023,0.00030136,2]
[312356321,1705821042864,-500.0,0.00030136,2]
[312356322,1705821042873,-1353.1,0.00030136,2]
[312356324,1705821042882,-500.0,0.00030136,2]
[312356326,1705821042892,-500.0,0.00030136,2]
[312356328,1705821042901,-501.32256975,0.00030136,2]
[312356329,1705821042910,-501.78466659,0.00030136,2]
[312356330,1705821042919,-500.0,0.00030136,2]
[312356331,1705821042929,-500.0,0.00030136,2]
[312356332,1705821042941,-500.0,0.00030136,2]
[312356333,1705821042951,-500.0,0.00030136,2]
[312356334,1705821042961,-500.0,0.00030136,2]
[312356335,1705821042971,-500.0,0.00030136,2]
[312356336,1705821042982,-859.12,0.00030136,2]
[312356337,1705821042991,-501.77316946,0.00030136,2]
[312356338,1705821043002,-1522.55,0.00030136,2]
[312356339,1705821043012,-500.0,0.00030136,2]
[312356340,1705821043022,-500.0,0.00030136,2]
[312356341,1705821043032,-500.0,0.00030136,2]
[312356342,1705821043043,-500.0,0.00030136,2]
[312356343,1705821043053,-500.0,0.00030136,2]
[312356344,1705821043062,-500.0,0.00030136,2]
[312356345,1705821043072,-503.06309626,0.00030136,2]
[312356346,1705821043082,-500.0,0.00030136,2]
[312356347,1705821043093,-500.0,0.00030136,2]
[312356348,1705821043102,-538.69538608,0.00030136,2]
[312356349,1705821043114,-500.0,0.00030136,2]
[312356350,1705821043123,-500.0,0.00030136,2]
[312356351,1705821043133,-508.32,0.00030136,2]
[312356352,1705821043143,-500.0,0.00030136,2]
[312356353,1705821043153,-505.15812508,0.00030136,2]
[312356354,1705821043163,-500.0,0.00030136,2]
[312356355,1705821043173,-500.0,0.00030136,2]
[312356356,1705821043182,-500.0,0.00030136,2]
[312356357,1705821043191,-501.44958437,0.00030136,2]
[312356358,1705821043201,-500.82235622,0.00030136,2]
[312356359,1705821043209,-500.0,0.00030136,2]
[312356360,1705821043218,-500.0,0.00030136,2]
[312356361,1705821043228,-500.0,0.00030136,2]
[312356362,1705821043237,-500.0,0.00030136,2]
[312356363,1705821043246,-500.0,0.00030136,2]
[312356364,1705821043256,-150.0,0.00030136,2]
[312356365,1705821043266,-500.0,0.00030136,2]
[312356366,1705821043276,-500.0,0.00030136,2]
[312356367,1705821043285,-501.56476935,0.00030136,2]
[312356368,1705821043294,-500.0,0.00030136,2]
[312356369,1705821043303,-794.88286437,0.00030136,2]
[312356370,1705821043322,-629.41713563,0.00030136,2]
[312356371,1705821043331,-500.0,0.00030136,2]
[312356372,1705821043343,-500.0,0.00030136,2]
[312356373,1705821043352,-109.54077838,0.00030136,2]
[312356374,1705821043367,-390.45922162,0.00030136,2]
[312356375,1705821043377,-673.27,0.00030136,2]
[312356376,1705821043386,-28.65672475,0.00030136,2]
[312356377,1705821043397,-706.22327525,0.00030136,2]
[312356378,1705821043407,-296.37159466,0.00030136,2]
[312356379,1705821043465,-2666.48487157,0.00029989,2]
[312356509,1705822239192,-246.1618135,0.00026978,2]
[312356511,1705822239202,-555.24243185,0.00026979,2]
[312356512,1705822239212,-561.53264515,0.00026979,2]
[312356513,1705822239222,-2814.61840706,0.00026979,2]
[312356514,1705822239231,-595.02587032,0.0002698,2]
[312356515,1705822239241,-154.70605849,0.0002698,2]
[312356516,1705822239250,-154.70605849,0.00026981,2]
[312356517,1705822239259,-154.70605849,0.00026982,4]
[312356518,1705822239269,-30280.45318008,0.00027,3]
[312356519,1705822239278,-172.865023,0.00028767,2]
[312356520,1705822239287,-7212.77,0.00029979,3]
[312356521,1705822239297,-6010.64,0.00029979,3]
[312356522,1705822239307,-5008.87,0.00029979,3]
[312356523,1705822239316,-155.09769188,0.00029988,2]
[312356524,1705822239326,-165.16995623,0.00029988,2]
[312356525,1705822239335,-155.29227458,0.00029988,2]
[312356526,1705822239345,-678.27625246,0.00029988,2]
[312356527,1705822239355,-19885.9800824,0.00029988,2]
[312356528,1705822239364,-2561.80318633,0.00029989,2]
[312356529,1705822239376,-742.19377108,0.00029989,2]
[312356530,1705822239385,-237.57908484,0.00029989,2]
[312356531,1705822239397,-6911.26644081,0.00029989,2]
[312356532,1705822239407,-667.5946537,0.00029989,2]
[312356533,1705822239417,-157.21764811,0.00029989,2]
[312356534,1705822239427,-1363.99656347,0.00029989,2]
[312356535,1705822239437,-1289.8209237,0.00029989,2]
[312356536,1705822239446,-1027.69635196,0.00029989,2]
[312356537,1705822239456,-3980.02828733,0.00029989,2]
[312356538,1705822239465,-157.1945398,0.00029989,2]
[312356539,1705822239475,-305.65151206,0.00029989,2]
[312356540,1705822239487,-416.9551013,0.00030034,2]
[312356541,1705822239496,-416.95510129,0.00030103,2]
[312356542,1705822239506,-347.00069417,0.00030134,2]
[312356543,1705822239518,-230.9549782,0.00030134,4]
[312356544,1705822239527,-156.60517663,0.00030134,4]
[312356545,1705822239537,-722.50907926,0.00030134,4]
[312356546,1705822239550,-896.90213099,0.00030134,6]
[312356547,1705822239561,-244.05029278,0.00030134,4]
[312356548,1705822239571,-155.5435324,0.00030134,4]
[312356549,1705822239582,-295.48284636,0.00030134,4]
[312356550,1705822239593,-266.02491592,0.00030134,4]
[312356551,1705822239602,-155.34695243,0.00030134,4]
[312356552,1705822239613,-7945.19667066,0.00030134,4]
[312356553,1705822239622,-171.43302867,0.00030134,4]
[312356554,1705822239632,-1430.14551075,0.00030134,4]
[312356555,1705822239642,-267.70028902,0.00030134,4]
[312356556,1705822239651,-178.53949807,0.00030134,4]
[312356557,1705822239660,-1201.26887827,0.00030134,4]
[312356558,1705822239671,-310.18680656,0.00030134,4]
[312356559,1705822239681,-183.50987477,0.00030134,4]
[312356560,1705822239691,-844.16440349,0.00030134,4]
[312356561,1705822239700,-1830.24193625,0.00030134,4]
[312356562,1705822239710,-423.05970953,0.00030134,4]
[312356563,1705822239719,-425.69649895,0.00030134,2]
[312356564,1705822239729,-5914.32694762,0.00030134,4]
[312356565,1705822239738,-164.39277149,0.00030134,4]
[312356566,1705822239750,-350.69063474,0.00030134,4]
[312356567,1705822239759,-591.34984357,0.00030134,4]
[312356568,1705822239768,-314.1231325,0.00030134,4]
[312356569,1705822239778,-226.19691074,0.00030134,4]
[312356570,1705822239787,-2443.58514652,0.00030134,4]
[312356571,1705822239796,-155.4555032,0.00030134,2]
[312356572,1705822239806,-2320.42125945,0.00030134,2]
[312356573,1705822239815,-874.18725797,0.00030134,4]
[312356574,1705822239825,-473.22201327,0.00030134,4]
[312356576,1705822239834,-7793.31146728,0.00030134,4]
[312356577,1705822239843,-2057.16971031,0.00030134,4]
[312356578,1705822239852,-306.95623254,0.00030135,4]
[312356579,1705822239862,-4810.59912074,0.00030135,4]
[312356580,1705822239871,-1000.0,0.00030135,3]
[312356581,1705822239880,-283.18988707,0.00030136,3]
[312356582,1705822239890,-500.0,0.00030136,2]
[312356583,1705822239899,-686.69676861,0.00030136,4]
[312356584,1705822239910,-500.0,0.00030136,2]
[312356585,1705822239919,-500.0,0.00030136,2]
[312356586,1705822239928,-500.0,0.00030136,2]
[312356587,1705822239937,-500.0,0.00030136,2]
[312356588,1705822239949,-471.89647136,0.00030136,2]
[312356589,1705822239959,-500.0,0.00030136,2]
[312356590,1705822239970,-500.0,0.00030136,2]
[312356591,1705822239979,-500.0,0.00030136,2]
[312356592,1705822239989,-656.62,0.00030136,2]
[312356593,1705822240001,-600.0726011,0.00030136,2]
[312356594,1705822240010,-500.0,0.00030136,2]
[312356595,1705822240020,-614.55,0.00030136,2]
[312356596,1705822240029,-500.0,0.00030136,2]
[312356597,1705822240038,-500.0,0.00030136,2]
[312356598,1705822240048,-500.0,0.00030136,2]
[312356599,1705822240057,-512.54465079,0.00030136,2]
[312356600,1705822240066,-500.0,0.00030136,2]
[312356601,1705822240075,-500.0,0.00030136,2]
[312356602,1705822240087,-500.0,0.00030136,2]
[312356603,1705822240097,-500.0,0.00030136,2]
[312356604,1705822240106,-386.07321651,0.00030136,2]
[312356605,1705822240116,-506.28428465,0.00030136,2]
[312356606,1705822240125,-524.30201853,0.00030136,2]
[312356607,1705822240134,-1000.0,0.00030136,2]
[312356608,1705822240143,-500.0,0.00030136,2]
[312356609,1705822240152,-500.0,0.00030136,2]
[312356610,1705822240161,-600.42402773,0.00030136,2]
[312356611,1705822240170,-500.0,0.00030136,2]
[312356612,1705822240180,-533.7492348,0.00030136,2]
[312356613,1705822240189,-500.0,0.00030136,2]
[312356614,1705822240198,-500.0,0.00030136,2]
[312356615,1705822240207,-517.31,0.00030136,2]
[312356616,1705822240217,-500.0,0.00030136,2]
[312356617,1705822240226,-500.0,0.00030136,2]
[312356618,1705822240235,-500.0,0.00030136,2]
[312356619,1705822240244,-500.0,0.00030136,2]
[312356620,1705822240253,-500.0,0.00030136,2]
[312356621,1705822240262,-500.0,0.00030136,2]
[312356622,1705822240271,-735.3,0.00030136,2]
[312356623,1705822240280,-500.0,0.00030136,2]
[312356624,1705822240290,-501.21615261,0.00030136,2]
[312356625,1705822240299,-513.36744023,0.00030136,2]
[312356626,1705822240308,-690.49,0.00030136,2]
[312356627,1705822240317,-500.0,0.00030136,2]
[312356628,1705822240326,-1296.72,0.00030136,2]
[312356629,1705822240335,-500.0,0.00030136,2]
[312356630,1705822240344,-500.0,0.00030136,2]
[312356631,1705822240353,-500.0,0.00030136,2]
[312356632,1705822240362,-500.0,0.00030136,2]
[312356633,1705822240372,-500.0,0.00030136,2]
[312356636,1705822240526,-500.0,0.00030136,2]
[312356637,1705822240536,-500.0,0.00030136,2]
[312356638,1705822240545,-500.0,0.00030136,2]
[312356639,1705822240554,-500.0,0.00030136,2]
[312356640,1705822240564,-503.06309626,0.00030136,2]
[312356641,1705822240573,-500.0,0.00030136,2]
[312356642,1705822240582,-500.0,0.00030136,2]
[312356643,1705822240591,-508.32,0.00030136,2]
[312356644,1705822240600,-500.0,0.00030136,2]
[312356645,1705822240610,-505.15812508,0.00030136,2]
[312356646,1705822240619,-501.44958437,0.00030136,2]
[312356647,1705822240628,-500.0,0.00030136,2]
[312356648,1705822240637,-501.56476935,0.00030136,2]
[312356650,1705822240647,-500.0,0.00030136,2]
[312356652,1705822240656,-150.0,0.00030136,2]
[312356654,1705822240665,-500.0,0.00030136,2]
[312356656,1705822240674,-500.0,0.00030136,2]
[312356658,1705822240683,-504.36863832,0.00030136,2]
[312356660,1705822240692,-500.0,0.00030136,2]
[312356662,1705822240701,-500.0,0.00030136,2]
[312356664,1705822240711,-663.47,0.00030136,2]
[312356666,1705822240719,-645.22,0.00030136,2]
[312356668,1705822240728,-500.0,0.00030136,2]
[312356670,1705822240737,-500.0,0.00030136,2]
[312356671,1705822240748,-511.20407066,0.00030136,2]
[312356672,1705822240757,-500.0,0.00030136,2]
[312356673,1705822240766,-504.03597928,0.00030136,2]
[312356674,1705822240775,-197.51931801,0.00030136,2]
[312356675,1705822240785,-500.0,0.00030136,2]
[312356676,1705822240794,-500.0,0.00030136,2]
[312356677,1705822240803,-500.0,0.00030136,2]
[312356678,1705822240812,-500.0,0.00030136,2]
[312356679,1705822240822,-10018.48398771,0.00030136,10]